bitfinex-derivatives/quotes_SOLF0:USTF0_20251018
["timestamp","ask_amount","ask_price","bid_price","bid_amount"]
[1760765844742,1.34473499,183.86,183.8,91.63662688]
[1760765845349,2.87,183.85,183.78,4.8955]
[1760765845548,1.34473499,183.83,183.77,45.0]
[1760765845851,6.9320047,183.82,183.73,45.0]
[1760765846047,2.87,183.82,183.73,45.0]
[1760765846951,2.87,183.82,183.76,4.896]
[1760765847849,2.87,183.82,183.74,4.8966]
[1760765848640,1.34473499,183.83,183.74,4.8966]
[1760765849046,2.87,183.81,183.74,4.8966]
[1760765849644,2.87,183.81,183.75,4.8963]
[1760765849848,2.87,183.81,183.72,26.72]
[1760765850249,2.87,183.81,183.74,4.8967]
[1760765850453,2.87,183.81,183.73,45.0]
[1760765851052,2.87,183.81,183.71,1.34473499]
[1760765851249,2.87,183.81,183.72,45.0]
[1760765851852,2.87,183.81,183.75,4.8963]
[1760765857453,2.87,183.81,183.76,4.896]
[1760765857654,2.87,183.81,183.74,1.34473499]
[1760765858456,2.87,183.81,183.75,4.8963]
[1760765858953,2.87,183.81,183.74,1.34473499]
[1760765860053,6.23833499,183.86,183.76,4.896]
[1760765860252,2.87,183.85,183.76,4.896]
[1760765860656,6.23833499,183.86,183.76,4.896]
[1760765860857,2.64,183.85,183.76,4.896]
[1760765861059,6.23833499,183.86,183.76,4.896]
[1760765861449,2.64,183.85,183.76,4.896]
[1760765861652,6.23833499,183.86,183.76,4.896]
[1760765861854,6.23833499,183.86,183.77,4.8958]
[1760765862354,4.05512752,183.88,183.8,4.8949]
[1760765862561,2.64,183.86,183.8,4.8949]
[1760765862953,6.23753499,183.89,183.8,4.8949]
[1760765862954,2.64,183.88,183.8,4.8949]
[1760765863253,6.23753499,183.89,183.8,4.8949]
[1760765863554,6.23753499,183.89,183.81,4.8947]
[1760765863962,2.64,183.88,183.81,4.8947]
[1760765864254,2.64,183.88,183.82,4.8944]
[1760765864455,6.23753499,183.89,183.82,4.8944]
[1760765865154,2.64,183.88,183.82,4.8944]
[1760765865355,6.23753499,183.89,183.82,4.8944]
[1760765865558,2.64,183.88,183.82,4.8944]
[1760765865952,6.23753499,183.89,183.82,4.8944]
[1760765866157,2.64,183.88,183.82,4.8944]
[1760765866357,6.23753499,183.89,183.82,4.8944]
[1760765866756,2.64,183.88,183.82,4.8944]
[1760765867858,6.23753499,183.89,183.82,4.8944]
[1760765868562,10.29448032,183.89,183.82,4.8944]
[1760765868764,4.8928,183.89,183.82,4.8944]
[1760765869161,8.95030426,183.89,183.82,4.8944]
[1760765869456,2.64,183.88,183.82,4.8944]
[1760765869863,6.23753499,183.89,183.82,4.8944]
[1760765870663,2.64,183.88,183.82,4.8944]
[1760765872264,6.69987499,183.88,183.82,4.8944]
[1760765873766,2.64,183.88,183.82,4.8944]
[1760765874361,6.70202611,183.88,183.82,4.8944]
[1760765875266,2.64,183.88,183.82,4.8944]
[1760765879270,7.5328,183.89,183.83,4.8942]
[1760765880368,2.64,183.88,183.81,4.8947]
[1760765881372,2.64,183.88,183.82,4.8945]
[1760765893095,2.85,183.88,183.82,4.8945]
[1760765893290,2.85,183.87,183.82,4.8945]
[1760765893593,2.85,183.88,183.82,4.8945]
[1760765893991,2.85,183.87,183.82,4.8945]
[1760765894190,2.85,183.88,183.82,4.8945]
[1760765895483,7.93018744,183.94,183.78,10.03644198]
[1760765895693,4.06110389,183.93,183.81,10.03644198]
[1760765895987,2.85,183.91,183.8,10.03644198]
[1760765896192,2.85,183.91,183.79,10.03644198]
[1760765896387,2.85,183.91,183.83,4.8942]
[1760765896990,2.85,183.91,183.84,4.8939]
[1760765898288,2.85,183.91,183.85,4.8936]
[1760765898492,2.85,183.91,183.8,10.03644198]
[1760765899300,2.85,183.94,183.81,12.13854218]
[1760765899500,4.05880377,183.93,183.81,12.13854218]
[1760765899800,2.85,183.94,183.88,4.8928]
[1760765899988,4.05880165,183.93,183.88,4.8928]
[1760765900192,2.1021002,183.97,183.81,10.03644198]
[1760765900400,4.0580829,183.96,183.81,10.03644198]
[1760765900700,2.85,183.94,183.81,10.03644198]
[1760765901101,2.85,183.94,183.86,4.8934]
[1760765901294,2.85,183.94,183.81,10.03644198]
[1760765901489,2.85,183.93,183.81,10.03644198]
[1760765901690,11.12631896,183.97,183.8,55.01644198]
[1760765901898,4.05775234,183.96,183.8,44.98]
[1760765902098,2.85,183.94,183.8,44.98]
[1760765902299,2.85,183.92,183.8,44.98]
[1760765902499,2.85,183.95,183.8,44.98]
[1760765902702,4.05778912,183.94,183.8,44.98]
[1760765902999,2.85,183.92,183.84,4.894]
[1760765903699,2.85,183.92,183.8,55.01644198]
[1760765903900,4.05742314,183.94,183.8,55.01644198]
[1760765904093,6.90742314,183.93,183.8,55.01644198]
[1760765904294,2.85,183.93,183.8,55.01644198]
[1760765905005,2.85,183.93,183.86,4.8934]
[1760765906704,2.85,183.93,183.87,4.8931]
[1760765908608,2.85,183.93,183.88,4.8928]
[1760765909300,6.9928002,183.97,183.88,4.8928]
[1760765909501,2.85,183.95,183.88,4.8928]
[1760765910197,2.85,183.95,183.89,4.8926]
[1760765911398,6.86886611,183.95,183.89,4.8926]
[1760765911599,4.01886611,183.96,183.83,44.98]
[1760765911801,6.86886611,183.96,183.83,44.98]
[1760765912099,2.85,183.96,183.83,55.01644198]
[1760765912500,2.85,183.96,183.91,4.8921]
[1760765912700,2.85,183.97,183.91,4.8921]
[1760765914709,2.85,183.97,183.85,10.03644198]
[1760765914913,2.85,183.97,183.92,4.8917]
[1760765915207,2.85,183.96,183.92,4.8917]
[1760765915602,2.85,184.0,183.86,44.96]
[1760765915800,2.85,184.0,183.87,44.96]
[1760765917110,2.85,184.0,183.93,4.8915]
[1760765917611,2.85,184.0,183.94,4.8912]
[1760765918312,2.85,184.0,183.95,4.8909]
[1760765920108,4.9521002,184.03,183.96,4.8907]
[1760765922004,2.68,184.02,183.96,4.8907]
[1760765923008,2.1021002,184.03,183.96,4.8907]
[1760765923206,2.68,184.02,183.96,4.8907]
[1760765923406,2.1021002,184.03,183.86,19.82324198]
[1760765923407,2.1021002,184.03,183.94,4.8913]
[1760765923702,2.68,184.02,183.94,4.8913]
[1760765924110,2.1021002,184.03,183.94,4.8913]
[1760765924711,2.68,184.02,183.94,4.8913]
[1760765924906,2.1021002,184.03,183.94,4.8913]
[1760765925107,2.68,184.01,183.94,4.8913]
[1760765925614,2.68,184.0,183.94,4.8913]
[1760765926107,2.68,183.99,183.94,4.8913]
[1760765926313,2.68,184.0,183.94,4.8913]
[1760765927114,4.8897,184.01,183.94,4.8913]
[1760765927314,2.68,184.0,183.94,4.8913]
[1760765927515,4.8897,184.01,183.94,4.8913]
[1760765927913,2.68,184.0,183.94,4.8913]
[1760765928111,4.8897,184.01,183.94,4.8913]
[1760765928312,2.68,184.0,183.94,4.8913]
[1760765928816,2.1021002,183.99,183.92,4.8918]
[1760765929724,2.68,183.98,183.92,4.8918]
[1760765937308,6.9923002,183.99,183.92,4.8918]
[1760765937513,2.68,183.98,183.92,4.8918]
[1760765938719,2.68,183.98,183.93,4.8915]
[1760765939015,2.1021002,183.99,183.93,4.8915]
[1760765939221,2.68,184.0,183.85,10.03644198]
[1760765939517,4.02363416,184.0,183.88,1.34363416]
[1760765940014,4.02363416,184.0,183.94,4.8913]
[1760765940420,4.02363416,184.0,183.88,1.34363416]
[1760765941724,4.02363416,184.0,183.96,4.8907]
[1760765941916,4.02363416,184.03,183.91,1.34363416]
[1760765942720,2.68,184.02,183.98,4.8902]
[1760765942916,2.68,184.02,183.89,10.03644198]
[1760765943117,2.68,184.02,183.95,4.891]
[1760765943520,2.68,184.02,183.89,46.28363416]
[1760765943722,2.68,184.02,183.89,56.32007614]
[1760765944015,2.65,184.02,183.89,56.32007614]
[1760765944823,3.99363416,184.03,183.97,4.8904]
[1760765945222,3.99363416,184.03,183.98,4.8902]
[1760765945927,2.65,184.02,183.98,4.8902]
[1760765946224,2.65,184.02,183.96,4.8907]
[1760765946524,1.34363416,184.03,183.96,4.8907]
[1760765946824,2.65,184.02,183.96,4.8907]
[1760765947219,1.34363416,184.03,183.96,4.8907]
[1760765947419,2.65,184.02,183.96,4.8907]
[1760765947820,1.34363416,184.03,183.96,4.8907]
[1760765948020,2.65,184.02,183.96,4.8907]
[1760765955628,6.23283416,184.03,183.97,4.8905]
[1760765955820,2.9,184.02,183.97,4.8905]
[1760765956225,2.9,184.01,183.95,4.891]
[1760765956425,1.34363416,184.0,183.89,10.03644198]
[1760765956625,2.9,183.99,183.89,10.03644198]
[1760765958734,2.9,183.99,183.88,19.82204198]
[1760765958932,2.9,183.99,183.93,4.8914]
[1760765962033,2.9,183.99,183.94,4.8912]
[1760765962434,1.34363416,184.0,183.94,4.8912]
[1760765962934,2.9,183.99,183.94,4.8912]
[1760765963140,2.9,183.99,183.95,4.891]
[1760765963338,1.34363416,184.0,183.91,10.03644198]
[1760765964142,2.9,184.02,183.91,10.03644198]
[1760765964844,2.9,184.02,183.9,11.38007614]
[1760765965743,2.9,184.02,183.91,10.03644198]
[1760765966042,2.9,184.02,183.95,4.8909]
[1760765966436,4.00816517,184.01,183.95,4.8909]
[1760765966744,2.9,184.02,183.96,4.8907]
[1760765968340,1.34363416,184.03,183.97,4.8905]
[1760765968739,4.24363416,184.03,183.97,4.8905]
[1760765969037,2.9,184.02,183.97,4.8905]
[1760765969243,1.34363416,184.03,183.97,4.8905]
[1760765969741,2.9,184.02,183.97,4.8905]
[1760765970237,1.34363416,184.03,183.97,4.8905]
[1760765970442,2.9,184.02,183.97,4.8905]
[1760765970635,1.34363416,184.03,183.97,4.8905]
[1760765971035,2.9,184.02,183.97,4.8905]
[1760765971437,1.34363416,184.03,183.97,4.8905]
[1760765971636,2.9,184.02,183.97,4.8905]
[1760765972441,1.34363416,184.03,183.97,4.8905]
[1760765972934,2.9,184.02,183.97,4.8905]
[1760765973338,1.34363416,184.03,183.97,4.8905]
[1760765973534,1.34363416,184.03,183.95,4.891]
[1760765973535,2.9,184.02,183.95,4.891]
[1760765973742,1.34363416,184.0,183.95,4.891]
[1760765974247,2.9,183.99,183.95,4.891]
[1760765974439,1.34363416,184.02,183.96,4.8907]
[1760765974646,1.34363416,184.03,183.92,10.03644198]
[1760765974844,2.9,184.02,183.92,10.03644198]
[1760765975739,1.34363416,184.03,183.97,4.8905]
[1760765976046,4.24363416,184.03,183.97,4.8905]
[1760765976241,5.0794625,184.09,184.04,4.8886]
[1760765976445,2.9,184.11,184.04,4.8886]
[1760765976744,2.9,184.14,184.07,4.8879]
[1760765976942,2.9,184.14,184.03,1.34363416]
[1760765977148,1.34363416,184.16,184.06,1.34363416]
[1760765977335,2.9,184.17,184.06,1.34363416]
[1760765977540,2.9,184.17,184.09,1.34363416]
[1760765978939,2.9,184.17,184.13,4.8863]
[1760765979640,2.9,184.19,184.09,1.34363416]
[1760765980644,2.9,184.19,184.11,4.8868]
[1760765981044,2.76,184.22,184.12,4.8864]
[1760765981440,2.76,184.22,184.12,1.34363416]
[1760765981641,2.76,184.22,184.15,4.8856]
[1760765982037,2.76,184.22,184.16,4.8853]
[1760765985148,2.76,184.26,184.18,4.885]
[1760765985748,1.34363416,184.27,184.18,4.885]
[1760765985951,2.76,184.26,184.18,4.885]
[1760765988850,2.76,184.26,184.19,4.8845]
[1760765990656,1.34363416,184.28,184.21,4.8842]
[1760765990954,2.76,184.29,184.21,4.8842]
[1760765991148,2.76,184.29,184.21,1.34363416]
[1760765991543,2.76,184.29,184.23,4.8834]
[1760765991749,4.10363416,184.32,184.23,4.8834]
[1760765992149,2.76,184.32,184.24,4.8832]
[1760765992851,1.34363416,184.3,184.21,6.22763416]
[1760765993060,2.76,184.29,184.21,4.884]
[1760765993258,2.76,184.29,184.18,11.86363416]
[1760765993554,2.76,184.29,184.23,4.8835]
[1760765995554,9.66,184.4,184.18,11.86363416]
[1760765995555,2.76,184.43,184.28,1.34363416]
[1760765995750,2.76,184.5,184.33,1.34363416]
[1760765996055,2.76,184.47,184.37,1.34363416]
[1760765996254,2.76,184.45,184.36,1.34363416]
[1760765996758,2.76,184.45,184.33,1.34363416]
[1760765997057,2.76,184.43,184.33,1.34363416]
[1760765997256,2.76,184.43,184.29,4.8819]
[1760765997451,2.76,184.43,184.33,1.34363416]
[1760765998050,1.34363416,184.46,184.26,4.8827]
[1760765998254,2.76,184.42,184.3,1.34363416]
[1760765998961,2.76,184.4,184.3,1.34363416]
[1760765999657,2.76,184.38,184.3,1.34363416]
[1760766000360,2.76,184.41,184.33,1.34363416]
[1760766001558,8.12,184.49,184.29,6.97207935]
[1760766001757,2.09017935,184.47,184.29,6.97207935]
[1760766001957,8.12,184.49,184.29,6.97207935]
[1760766001958,4.8791,184.41,184.29,6.97207935]
[1760766002162,2.09017935,184.48,184.29,4.8819]
[1760766002860,8.12,184.49,184.29,4.8819]
[1760766003054,2.09017935,184.47,184.29,4.8819]
[1760766003254,2.76,184.46,184.29,4.8819]
[1760766003560,2.09017935,184.47,184.29,4.8819]
[1760766003861,2.67,184.46,184.29,4.8819]
[1760766004063,2.67,184.39,184.29,4.8819]
[1760766005757,7.5497,184.39,184.29,4.8819]
[1760766005959,2.09017935,184.43,184.28,2.09017935]
[1760766006258,2.09017935,184.43,184.18,538.22467131]
[1760766006259,2.09017935,184.39,184.24,2.09017935]
[1760766006558,2.67,184.38,184.24,2.09017935]
[1760766006757,4.8812,184.33,184.24,2.09017935]
[1760766006953,2.67,184.32,184.24,2.09017935]
[1760766007556,2.67,184.38,184.2,6.97457935]
[1760766007756,2.67,184.34,184.16,2.09017935]
[1760766008758,2.67,184.26,184.17,4.885]
[1760766008960,2.67,184.26,184.16,2.09017935]
[1760766009164,2.09017935,184.31,184.12,45.12]
[1760766009458,2.67,184.23,184.13,4.8863]
[1760766009958,2.67,184.23,184.12,4.8864]
[1760766011156,4.8834,184.24,184.12,4.8864]
[1760766011363,2.65,184.23,184.12,4.8864]
[1760766013472,2.65,184.23,184.14,4.8861]
[1760766013766,2.65,184.23,184.09,2.09017935]
[1760766014968,7.5337,184.23,184.12,4.8866]
[1760766015166,2.65,184.22,184.12,4.8866]
[1760766017061,4.8837,184.23,184.12,4.8866]
[1760766017267,2.65,184.21,184.12,4.8866]
[1760766017470,2.09017935,184.24,184.06,45.14]
[1760766017471,2.09017935,184.24,184.06,47.23017935]
[1760766017973,2.65,184.23,184.06,47.23017935]
[1760766018373,2.09017935,184.24,184.06,47.23017935]
[1760766018573,2.65,184.19,184.1,4.8869]
[1760766020072,2.65,184.19,184.11,2.09017935]
[1760766020969,2.65,184.19,184.11,6.97687935]
[1760766021570,2.65,184.2,184.11,6.97687935]
[1760766021971,4.8845,184.21,184.11,6.97687935]
[1760766022274,2.65,184.19,184.11,6.97687935]
[1760766022474,4.8845,184.21,184.11,6.97687935]
[1760766022675,2.65,184.19,184.11,6.97687935]
[1760766023474,2.65,184.2,184.11,2.09017935]
[1760766024184,4.8849,184.19,184.11,2.09017935]
[1760766024383,2.65,184.18,184.11,2.09017935]
[1760766025084,2.65,184.16,184.09,4.8872]
[1760766025879,2.09017935,184.25,184.09,4.8872]
[1760766026272,2.65,184.16,184.09,4.8872]
[1760766029084,4.8853,184.17,184.09,4.8872]
[1760766029288,2.65,184.16,184.09,4.8872]
[1760766029784,2.65,184.2,184.09,2.09017935]
[1760766030989,2.65,184.2,184.12,4.8866]
[1760766032586,2.65,184.2,184.09,2.09017935]
[1760766032587,2.09017935,184.23,184.02,90.33228458]
[1760766032791,2.09017935,184.19,184.02,90.33228458]
[1760766033190,2.65,184.12,184.02,90.33228458]
[1760766034400,2.65,184.12,184.02,95.22128458]
[1760766034691,2.65,184.11,184.02,95.22128458]
[1760766036093,7.5371,184.11,184.02,95.22128458]
[1760766036288,4.8871,184.11,184.02,95.22128458]
[1760766036489,2.65,184.1,184.02,95.22128458]
[1760766037896,2.09017935,184.15,183.99,4.8898]
[1760766038096,2.65,184.14,183.98,45.18]
[1760766038589,2.09017935,184.15,183.98,45.18]
[1760766038989,2.09017935,184.11,183.97,6.98067935]
[1760766039191,2.65,184.1,183.97,6.98067935]
[1760766039392,2.09017935,184.11,183.97,6.98067935]
[1760766040094,2.65,184.04,183.97,6.98067935]
[1760766040295,2.65,184.04,183.97,4.8905]
[1760766041196,2.65,184.04,183.95,4.8911]
[1760766041594,7.5389,184.04,183.95,4.8911]
[1760766042295,7.5389,184.04,183.94,2.09017935]
[1760766042296,14.76,184.1,183.94,2.09017935]
[1760766042497,2.63,184.09,183.94,2.09017935]
[1760766043995,2.63,184.07,183.94,2.09017935]
[1760766044997,4.8892,184.03,183.94,2.09017935]
[1760766045199,7.5192,184.03,183.94,2.09017935]
[1760766046198,4.8895,184.02,183.94,2.09017935]
[1760766046697,4.8895,184.02,183.94,6.98137935]
[1760766052503,4.8895,184.02,183.95,4.891]
[1760766053302,2.63,184.03,183.95,4.891]
[1760766054997,7.5192,184.03,183.95,4.891]
[1760766056101,7.5192,184.03,183.96,4.8907]
[1760766056304,2.63,184.03,183.97,2.09017935]
[1760766057804,4.8885,184.05,183.97,2.09017935]
[1760766058003,4.8885,184.05,183.97,6.98057935]
[1760766058604,2.63,184.04,183.97,6.98057935]
[1760766061305,2.63,184.04,184.0,1.34262672]
[1760766061503,2.63,184.03,184.0,1.34262672]
[1760766061711,2.63,184.04,184.0,1.34262672]
[1760766062307,2.63,184.03,184.0,1.34262672]
[1760766062507,2.63,184.04,184.0,1.34262672]
[1760766063812,2.8,184.03,184.0,1.34262672]
[1760766064006,2.8,184.04,184.0,1.34262672]
[1760766064510,2.8,184.03,184.0,1.34262672]
[1760766064708,2.8,184.02,184.0,1.34262672]
[1760766067307,2.8,184.02,183.98,4.8902]
[1760766067308,2.8,184.02,183.99,1.34262672]
[1760766067715,2.8,184.03,183.98,4.8902]
[1760766068410,2.8,184.01,183.97,1.34262672]
[1760766068712,1.34262672,184.05,183.96,4.8908]
[1760766068906,2.8,184.04,183.96,4.8908]
[1760766069107,1.34262672,184.05,183.96,4.8908]
[1760766069301,2.8,184.04,183.96,4.8908]
[1760766069504,1.34262672,184.05,183.96,4.8908]
[1760766070010,4.8894,184.02,183.96,4.8908]
[1760766070213,7.6894,184.02,183.96,4.8908]
[1760766072705,2.8,184.02,183.96,6.23342672]
[1760766072908,2.63,184.03,183.96,1.34262672]
[1760766074120,7.5188,184.04,183.98,4.8902]
[1760766074820,2.63,184.04,183.98,4.8902]
[1760766075521,2.63,184.04,183.98,6.23282672]
[1760766075819,2.63,184.07,183.98,1.34262672]
[1760766076216,6.59651372,184.07,183.98,1.34262672]
[1760766076422,2.63,184.07,183.98,1.34262672]
[1760766076618,11.48461372,184.07,184.0,1.34262672]
[1760766076818,3.96651372,184.06,184.0,1.34262672]
[1760766077120,2.63,184.06,184.0,1.34262672]
[1760766077323,2.63,184.06,184.0,6.23222672]
[1760766077917,2.63,184.06,184.0,1.34262672]
[1760766079127,3.97944557,184.05,184.0,1.34262672]
[1760766079324,2.63,184.06,184.0,1.34262672]
[1760766080423,3.98099131,184.05,184.0,1.34262672]
[1760766080718,2.63,184.04,184.0,1.34262672]
[1760766081423,2.63,184.03,184.0,1.34262672]
[1760766082517,4.8881,184.07,183.99,4.8899]
[1760766082518,2.63,184.05,183.99,4.8899]
[1760766083720,5.02950152,184.09,183.93,10.03644198]
[1760766083721,2.63,184.09,184.02,1.34262672]
[1760766083929,3.98466314,184.08,184.02,1.34262672]
[1760766084224,2.63,184.09,184.02,1.34262672]
[1760766084524,3.98437552,184.08,184.02,1.34262672]
[1760766084720,2.63,184.09,184.02,1.34262672]
[1760766084917,3.9833258,184.08,184.02,1.34262672]
[1760766085123,7.5175,184.09,184.02,6.23172672]
[1760766085322,3.98338533,184.08,184.02,1.34262672]
[1760766085524,2.63,184.09,184.02,1.34262672]
[1760766085726,3.98247935,184.08,184.02,1.34262672]
[1760766085926,2.63,184.09,184.02,1.34262672]
[1760766086126,3.98247896,184.08,184.02,1.34262672]
[1760766086330,2.63,184.09,184.02,1.34262672]
[1760766086626,3.98171326,184.08,184.02,1.34262672]
[1760766086823,2.63,184.09,184.02,1.34262672]
[1760766087020,2.63,184.07,184.03,4.8889]
[1760766088325,2.63,184.1,184.03,4.8889]
[1760766088526,3.97975363,184.09,184.03,4.8889]
[1760766088828,2.63,184.1,184.03,4.8889]
[1760766089026,3.96638102,184.09,184.03,4.8889]
[1760766089220,2.63,184.08,184.04,6.23122672]
[1760766089627,2.63,184.08,184.04,1.34262672]
[1760766089827,2.63,184.11,184.05,4.8883]
[1760766090726,6.59430724,184.11,184.05,4.8883]
[1760766090927,2.63,184.11,184.06,4.888]
[1760766091121,2.63,184.1,184.06,4.888]
[1760766091924,2.63,184.11,184.07,4.8878]
[1760766092527,2.63,184.12,184.05,4.8885]
[1760766093225,2.63,184.12,184.06,4.888]
[1760766093826,2.63,184.12,184.07,4.8877]
[1760766094031,2.63,184.12,184.04,1.34262672]
[1760766094032,2.63,184.13,184.04,1.34262672]
[1760766094232,2.63,184.13,184.06,1.34262672]
[1760766094828,2.63,184.13,184.0,55.09644198]
[1760766095029,2.63,184.13,184.05,1.34262672]
[1760766095729,2.63,184.14,184.08,4.8875]
[1760766095924,2.63,184.14,184.05,1.34262672]
[1760766096327,1.34262672,184.14,184.07,4.8877]
[1760766096520,1.34262672,184.12,184.07,4.8877]
[1760766096921,2.63,184.11,184.07,4.8877]
[1760766101727,2.76,184.11,184.07,4.8877]
[1760766106039,1.34262672,184.12,184.07,4.8877]
[1760766106337,2.76,184.11,184.07,4.8877]
[1760766108533,2.76,184.11,184.08,4.8875]
[1760766110532,4.10262672,184.15,184.09,4.8872]
[1760766112740,1.34262672,184.15,184.09,4.8872]
[1760766112946,1.34262672,184.13,184.09,4.8872]
[1760766113152,2.76,184.12,184.09,4.8872]
[1760766119754,2.76,184.12,184.05,1.34262672]
[1760766119755,1.34262672,184.14,184.07,4.8878]
[1760766119958,2.76,184.11,184.01,1.34262672]
[1760766120258,1.34262672,184.12,184.06,4.8881]
[1760766121457,6.98326255,184.14,184.06,4.8881]
[1760766122559,2.76,184.13,184.06,4.8881]
[1760766122759,6.98326255,184.14,184.06,4.8881]
[1760766123559,2.76,184.13,184.06,4.8881]
[1760766123761,2.9,184.13,184.06,4.8881]
[1760766123961,6.98326255,184.14,184.06,4.8881]
[1760766124162,2.9,184.13,184.06,4.8881]
[1760766124664,6.98326255,184.14,184.06,4.8881]
[1760766125166,2.9,184.13,184.06,4.8881]
[1760766125359,6.98326255,184.14,184.06,4.8881]
[1760766125964,2.9,184.13,184.06,4.8881]
[1760766126161,6.98326255,184.14,184.06,4.8881]
[1760766126363,2.9,184.11,184.04,4.8886]
[1760766126566,2.9,184.13,184.04,4.8886]
[1760766126969,6.05466199,184.14,184.04,4.8886]
[1760766127165,2.9,184.1,184.04,4.8886]
[1760766132368,2.9,184.1,184.05,4.8883]
[1760766132571,2.65,184.09,184.05,4.8883]
[1760766132870,2.65,184.1,184.05,4.8883]
[1760766133072,4.887,184.11,184.05,4.8883]
[1760766133862,2.65,184.1,184.05,4.8883]
[1760766134268,4.887,184.11,184.05,4.8883]
[1760766134473,2.65,184.09,184.03,4.8889]
[1760766135178,2.65,184.09,184.04,4.8886]
[1760766135469,2.09706255,184.12,184.02,6.69975792]
[1760766135666,9.03240863,184.11,183.99,6.69975792]
[1760766135863,3.95835894,184.1,183.98,6.69975792]
[1760766136067,2.09706255,184.09,183.98,6.69975792]
[1760766136870,7.72404969,184.11,184.0,6.69975792]
[1760766137074,2.65,184.11,184.01,6.69975792]
[1760766137974,2.65,184.11,184.03,4.8888]
[1760766138478,4.8868,184.12,184.03,4.8888]
[1760766138873,2.65,184.11,184.03,4.8888]
[1760766140071,4.8868,184.12,184.03,4.8888]
[1760766140271,2.65,184.11,184.03,4.8888]
[1760766143477,2.65,184.11,184.03,11.58855792]
[1760766145375,2.65,184.11,184.04,4.8885]
[1760766147176,2.65,184.1,184.04,4.8885]
[1760766160695,7.72404969,184.15,184.02,6.69975792]
[1760766160887,2.65,184.15,184.07,6.69975792]
[1760766161292,7.536,184.15,184.07,6.69975792]
[1760766161598,7.536,184.15,184.06,11.58785792]
[1760766162194,7.536,184.15,184.07,4.8878]
[1760766162391,7.536,184.15,184.06,6.69975792]
[1760766164094,7.6253,184.17,184.06,6.69975792]
[1760766164297,2.74,184.17,184.07,6.69975792]
[1760766165186,2.74,184.17,184.11,4.8867]
[1760766165796,3.94105268,184.2,184.09,6.69975792]
[1760766165797,2.74,184.2,184.09,6.69975792]
[1760766165999,2.74,184.2,184.12,6.69975792]
[1760766166296,2.74,184.2,184.11,6.69975792]
[1760766167898,2.74,184.2,184.15,4.8856]
[1760766170698,2.74,184.24,184.16,4.8854]
[1760766171296,2.74,184.24,184.17,4.885]
[1760766173296,6.98036255,184.25,184.17,4.885]
[1760766173497,2.74,184.24,184.17,4.885]
[1760766173693,6.98036255,184.25,184.17,4.885]
[1760766173901,2.74,184.24,184.17,4.885]
[1760766174794,6.98036255,184.25,184.17,4.885]
[1760766174990,2.74,184.24,184.17,4.885]
[1760766175500,2.74,184.24,184.18,4.8849]
[1760766176695,4.8833,184.25,184.18,4.8849]
[1760766177096,2.74,184.24,184.18,4.8849]
[1760766178003,4.8833,184.25,184.18,4.8849]
[1760766178201,2.74,184.24,184.18,4.8849]
[1760766178400,2.74,184.23,184.18,4.8849]
[1760766178802,2.74,184.24,184.18,4.8849]
[1760766180299,2.09706255,184.26,184.1,16.47395792]
[1760766180505,2.74,184.25,184.1,6.69975792]
[1760766180705,2.74,184.25,184.12,2.09706255]
[1760766181407,4.08000063,184.25,184.14,1.34000063]
[1760766182106,4.08000063,184.25,184.19,4.8846]
[1760766182506,4.08000063,184.25,184.2,4.8843]
[1760766183103,2.74,184.24,184.2,4.8843]